Cogmind - Beta 9.6 @@@ ROGUE MODE // 2020.08.26 @ 20:43:59 Player: Airus Result: Destroyed by G-47 Trooper with Particle Gun Performance ------------- Evolutions (2) 1000 Regions Visited (3) 600 Robots Destroyed (19) 95 Value Destroyed (678) 678 Prototype IDs (0) 0 Alien Tech Used (0) 0 Bonus (0) 0 TOTAL SCORE: 2373 Bonus ------- None Cogmind --------- Core Integrity 0/550 Matter 241/300 Energy 100/100 System Corruption 0% Temperature Cool (9) Movement Rolling (100) Location -8/Materials Parts ------- > --- POWER (1) -------- (None) > --- PROPULSION (3) --- Armored Huge Wheel > --- UTILITY (5) ------ Medium Storage Unit Signal Interpreter > --- WEAPON (2) ------- Heavy Assault Rifle Grenade Launcher > --- INVENTORY (8) ---- Armored Huge Wheel Armored Huge Wheel Large Storage Unit Beam Rifle Peak State ------------ > --- POWER ------------ Light Nuclear Core > --- PROPULSION ------- Improved Carbon-fiber Leg Armored Huge Wheel > --- UTILITY ---------- Improved Heat Sink Medium Storage Unit Signal Interpreter Propulsion Shielding Light Armor Plating > --- WEAPON ----------- Assault Rifle Chainsword > --- INVENTORY -------- Armored Huge Wheel Armored Huge Wheel Large Storage Unit Beam Rifle Heavy Assault Rifle Grenade Launcher [Rating: 29] Favorites ----------- Power Improved Ion Engine Engine Improved Ion Engine Power Core Light Nuclear Core Propulsion Wheel Treads Light Treads Leg Aluminum Leg Wheel Wheel Utility Medium Storage Unit Device Improved Heat Sink Storage Medium Storage Unit Processor Signal Interpreter Protection Propulsion Shielding Weapon Assault Rifle Energy Gun Medium Laser Ballistic Gun Assault Rifle Launcher Grenade Launcher Slashing Weapon Chainsword Build | -11 -10 -9 -8 ------- Run | Scr Mat Mat Mat Slots Evolved 4 | . . 2 2 Power . | . . . . Propulsion 1 | . . 1 . Utility 3 | . . 1 2 Weapon . | . . . . Parts Attached 38 | 6 10 10 12 Power 3 | 1 . 1 1 Engine 2 | 1 . 1 . Core 1 | . . . 1 Reactor . | . . . . Propulsion 13 | 2 2 4 5 Treads 1 | . . 1 . Leg 7 | . . 3 4 Wheel 5 | 2 2 . 1 Hover . | . . . . Flight . | . . . . Utility 10 | 1 3 3 3 Device 3 | 1 . . 2 Storage 2 | . 2 . . Processor 1 | . . 1 . Hackware . | . . . . Protection 4 | . 1 2 1 Artifact . | . . . . Weapon 12 | 2 5 2 3 Energy Gun 5 | 2 2 1 . Energy Cannon . | . . . . Ballistic Gun 5 | . 3 1 1 Ballistic Cannon . | . . . . Launcher 1 | . . . 1 Special Weapon . | . . . . Impact Weapon . | . . . . Slashing Weapon 1 | . . . 1 Piercing Weapon . | . . . . Special Melee Weapon . | . . . . Unidentified Prototypes . | . . . . Parts Lost 10 | . . 3 7 Power 1 | . . . 1 Propulsion 3 | . . 2 1 Utility 3 | . . . 3 Weapon 3 | . . 1 2 Highest Loss Streak 6 | . . 2 6 Average Slot Usage (%) 86 | . 90 95 76 Engine 6 | . 8 9 2 Core 1 | . . . 3 Treads 2 | . . 8 . Leg 9 | . . 20 7 Wheel 11 | . 27 1 8 Device 4 | . 6 . 7 Storage 9 | . 8 11 9 Processor 6 | . . 10 9 Protection 13 | . 13 11 14 Energy Gun 5 | . 14 1 2 Ballistic Gun 12 | . 12 20 7 Slashing Weapon 1 | . . . 4 Naked Turns . | . . . . Heaviest Build 25 | 7 15 23 25 Greatest Support 54 | 20 20 30 54 Greatest Overweight (x) 3 | . 2 3 2 Average Overweight (x) . | . . . . Largest Inventory Capacity 8 | 4 8 8 8 Average Capacity 7 | 4 6 8 8 Most Carried 8 | 4 7 8 8 Average Carried 6 | 1 5 6 7 Final Capacity 8 | 4 8 8 8 Final Carried 8 | 2 7 8 6 Class Distribution -------------------- 77% | Mutant 22% | Scavenger-Mutant Dominant Class ---------------- Mutant | -10/Materials Mutant | -9/Materials Mutant | -8/Materials Resources | -11 -10 -9 -8 ----------- Run | Scr Mat Mat Mat Matter Collected 704 | 250 42 257 155 Remotely . | . . . . Salvage Created 754 | 34 82 371 267 Parts 56 | 1 5 29 21 Haulers Intercepted . | . . . . Recyclers Shooed . | . . . . Parts Field Recycled . | . . . . Retrieved Matter . | . . . . Parts Self-Destructed . | . . . . Prevented . | . . . . Kills | -11 -10 -9 -8 ------- Run | Scr Mat Mat Mat Combat Hostiles Destroyed 17 | 1 2 8 6 Melee 2 | . . . 2 Guns 12 | 1 2 8 1 AOE 3 | . . . 3 Classes Destroyed 5 | 1 . 2 2 Watcher 2 | . . . 2 Swarmer 2 | . . . 2 Grunt 10 | 1 2 4 3 Brawler 1 | . . 1 . Sentry 4 | . . 3 1 Best Kill Streak 4 | 1 1 3 4 Combat Bots Only 3 | 1 1 3 3 Max Kills in Single Turn 3 | 1 1 1 3 Gunslinging . | . . . . Exploded 3 | . . . 3 Melee 1 | . . . 1 Uniques/NPCs Destroyed . | . . . . Combat | -11 -10 -9 -8 -------- Run | Scr Mat Mat Mat Damage Taken 1907 | 11 180 320 1396 Core 660 | . 50 46 564 Absorbed by Shields . | . . . . Core Remaining (%) 89 | 100 80 88 . Volleys Fired 56 | 2 13 33 8 Largest 2 | 2 2 2 2 Hottest 90 | 90 70 40 76 Shots Fired 111 | 4 25 66 16 Gun 108 | 4 25 66 13 Cannon . | . . . . Launcher 3 | . . . 3 Special . | . . . . Kinetic 86 | . 12 66 8 Thermal 22 | 4 13 . 5 Explosive 3 | . . . 3 Electromagnetic . | . . . . Robot Hit Streak 13 | 2 10 13 4 Robot Miss Streak 9 | 1 2 9 2 Penetration Max . | . . . . Secondary Targets . | . . . . Shots Hit Robots 76 | 2 17 37 20 Core Hits 40 | 2 5 19 14 Critical Hits . | . . . . Critical Kills . | . . . . Critical Parts Destroyed . | . . . . Melee Attacks 13 | . . . 13 Impact . | . . . . Slashing 13 | . . . 13 Piercing . | . . . . Sneak Attacks . | . . . . Combat Hostiles . | . . . . Follow-up Attacks . | . . . . Damage Inflicted 1253 | 34 158 374 687 Guns 696 | 34 158 374 130 Cannons . | . . . . Explosions 212 | . . . 212 Melee 330 | . . . 330 Ramming 15 | . . . 15 Kinetic 476 | . 44 374 58 Thermal 220 | 34 114 . 72 Explosive 212 | . . . 212 Electromagnetic . | . . . . Impact . | . . . . Slashing 330 | . . . 330 Piercing . | . . . . Highest Corruption . | . . . . Average Corruption . | . . . . Corruption Purged . | . . . . Overload Shots . | . . . . Overflow Damage . | . . . . Projectiles . | . . . . Explosions . | . . . . Melee . | . . . . Knockbacks . | . . . . Impact . | . . . . Kinetic . | . . . . Secondary . | . . . . Self-Inflicted Damage 7 | . . . 7 Shots . | . . . . Rammed 2 | . . . 2 Targets Rammed 2 | . . . 2 Kicked . | . . . . Crushed . | . . . . Highest Temperature 264 | 36 264 11 14 Average Temperature 74 | 21 125 3 4 Received Heat Transfer 801 | 6 99 120 576 Siege Activations . | . . . . Robots Corrupted . | . . . . Combat Hostiles . | . . . . Parts Fried . | . . . . Impact Corruptions . | . . . . Robots Melted . | . . . . Combat Hostiles . | . . . . Parts Melted 4 | 1 2 . 1 Heat Transferred 617 | 99 333 . 185 Parts Sabotaged . | . . . . Parts Stolen . | . . . . Parts Stripped . | . . . . Power Chain Reactions . | . . . . Missiles Intercepted . | . . . . Alert | -11 -10 -9 -8 ------- Run | Scr Mat Mat Mat Peak Influence 361 | 20 110 361 230 Average Influence 111 | 4 62 183 105 Maximum Alert Level 1 | . . 1 1 Low Security (%) 85 | 100 100 62 91 Level 1 14 | . . 37 8 Level 2 . | . . . . Level 3 . | . . . . Level 4 . | . . . . Level 5 . | . . . . High Security . | . . . . Max Security . | . . . . Squads Dispatched 4 | . 1 1 2 Investigation 3 | . 1 . 2 Extermination . | . . . . Reinforcement 1 | . . 1 . Assault . | . . . . Garrison . | . . . . Intercept . | . . . . Construction Impeded . | . . . . Haulers Reinforced . | . . . . Stealth | -11 -10 -9 -8 --------- Run | Scr Mat Mat Mat Distress Signals 6 | . . 2 4 Communications Jammed . | . . . . Distress Signals . | . . . . Times Spotted 63 | 1 9 22 31 Peak Tracking Total 22 | 1 3 5 22 Tactical Retreats 9 | . 2 2 5 Traps | -11 -10 -9 -8 ------- Run | Scr Mat Mat Mat Traps Triggered 5 | . 4 . 1 Indirectly . | . . . . Trap Hack Attempts . | . . . . Triggered . | . . . . Disarmed . | . . . . Reprogrammed . | . . . . Reused . | . . . . Traps Extracted . | . . . . Installed . | . . . . Triggered . | . . . . Machines | -11 -10 -9 -8 ---------- Run | Scr Mat Mat Mat Machines Disabled . | . . . . Max in Single Turn . | . . . . Machines Sabotaged . | . . . . Garrisons Compromised . | . . . . Overloaded Fab Kills . | . . . . Fab Network Shutdowns . | . . . . Hacking | -11 -10 -9 -8 --------- Run | Scr Mat Mat Mat Machines Accessed 11 | . 5 2 4 Terminals 11 | . 5 2 4 Fabricators . | . . . . Repair Stations . | . . . . Recycling Units . | . . . . Scanalyzers . | . . . . Garrison Access . | . . . . Total Hacks 31 | . 8 4 19 Successful 18 | . 7 . 11 Failed 13 | . 1 4 8 Catastrophic 2 | . . 1 1 Database Lockouts . | . . . . Manual 16 | . 4 1 11 Terminals 31 | . 8 4 19 Fabricators . | . . . . Repair Stations . | . . . . Recycling Units . | . . . . Scanalyzers . | . . . . Garrison Access . | . . . . Terminal Hacks 9 | . 4 . 5 Record 2 | . 1 . 1 Level Access Points 1 | . 1 . . Alert Level 1 | . . . 1 Zone Layout 5 | . 2 . 3 Fabricator Hacks . | . . . . Repair Station Hacks . | . . . . Recycling Unit Hacks . | . . . . Scanalyzer . | . . . . Garrison Access Hacks . | . . . . Unauthorized Hacks 9 | . 3 . 6 Terminals 9 | . 3 . 6 Track 7 | . 3 . 4 Botnet 2 | . . . 2 Fabricators . | . . . . Repair Stations . | . . . . Recycling Units . | . . . . Scanalyzers . | . . . . Garrison Access . | . . . . Data Cores Recovered . | . . . . Used . | . . . . Hacking Detections 9 | . 4 1 4 Full Trace Events 1 | . . . 1 Feedback Events . | . . . . Feedback Blocked . | . . . . Robot Schematics Acquired . | . . . . Robots Built . | . . . . Matter . | . . . . Time . | . . . . Total Robot Build Rating . | . . . . Part Schematics Acquired . | . . . . Parts Built . | . . . . Matter . | . . . . Time . | . . . . Total Part Build Rating . | . . . . Parts Repaired . | . . . . Time . | . . . . Parts Recycled . | . . . . Recycled Matter . | . . . . Retrieved Matter . | . . . . Retrieved Components . | . . . . Parts Scanalyzed . | . . . . Part Schematics Acquired . | . . . . Parts Damaged . | . . . . Bothacking | -11 -10 -9 -8 ------------ Run | Scr Mat Mat Mat Used RIF Installer . | . . . . Robots Hacked . | . . . . Non-combat . | . . . . Combat . | . . . . Robot Hacks Applied . | . . . . Relay Couplers Released . | . . . . Robots Rewired . | . . . . Allies Hacked . | . . . . Hacks Repelled . | . . . . Allies | -11 -10 -9 -8 -------- Run | Scr Mat Mat Mat Total Allies . | . . . . Largest Group . | . . . . Highest-Rated Group . | . . . . Highest-Rated Ally . | . . . . Total Orders . | . . . . Ally Attacks . | . . . . Total Damage . | . . . . Kills . | . . . . Allies Corrupted . | . . . . Allies Melted . | . . . . Intel | -11 -10 -9 -8 ------- Run | Scr Mat Mat Mat Robot Analysis Total . | . . . . Derelict Logs Recovered . | . . . . Drone Launches . | . . . . Drone Recoveries . | . . . . Exploration | -11 -10 -9 -8 ------------- Run | Scr Mat Mat Mat Turns Passed 1342 | 87 343 401 511 Spaces Moved 1023 | 96 315 194 418 Core 65 | 63 1 1 . Treads 10 | . . 10 . Legs 180 | . . 167 13 Wheels 768 | 33 314 16 405 Hover . | . . . . Flight . | . . . . Fastest Speed 50 | 50 80 80 100 Average Speed 95 | 60 80 125 100 Slowest Speed 200 | 80 150 200 180 Overloaded Moves . | . . . . Propulsion Burnouts . | . . . . Robots Hopped . | . . . . Cave-ins Triggered . | . . . . Exploration Rate (%) 34 | 5 49 28 57 Regions Visited 3 Branch Regions . Pre-discovered Areas . | . . . . Known Exits Taken 2 | . 1 1 . Unknown Exits Taken 1 | 1 . . . Scrap Searched . | . . . . Spaces Dug 3 | . . . 3 Terrain Destroyed 26 | . . . 26 Melee 3 | . . . 3 Projectile . | . . . . AOE 23 | . . . 23 Actions | -11 -10 -9 -8 --------- Run | Scr Mat Mat Mat Total 1270 | 120 379 293 478 Wait 90 | 9 33 43 5 Move 1020 | 95 314 193 418 Hop . | . . . . Pick Up 29 | 8 7 8 6 Fast Attach 14 | . 6 5 3 Attach 16 | 6 2 4 4 Detach . | . . . . Swap 8 | . 2 1 5 Drop 22 | . 2 6 14 Fire 56 | 2 13 33 8 Melee 13 | . . . 13 Ram 2 | . . . 2 Kick . | . . . . Crush . | . . . . Escape Stasis . | . . . . Rewire . | . . . . Trap . | . . . . Miscellaneous . | . . . . Route ------- -11/Scrapyard -10/Materials (discovered 3 exits: *Mat x3) -9/Materials -8/Materials History --------- Turn | Location | Event 2 | -11/Scrapyard | Met Revision 17 62 | -11/Scrapyard | Discovered new exit (range 8) 88 | -11/Scrapyard | Entered Materials 227 | -10/Materials | Discovered new exit (range 4) 327 | -10/Materials | Build established: Mutant 344 | -10/Materials | Identified exit to Materials 431 | -10/Materials | Entered another Materials area 431 | -9/Materials | Evolved 2 slots: Propulsion x1, Utility x1 820 | -9/Materials | Discovered new exit (range 7) 831 | -9/Materials | Identified exit to Materials 832 | -9/Materials | Entered another Materials area 832 | -8/Materials | Evolved 2 slots: Utility x2 1248 | -8/Materials | Core integrity fell below 50% 1263 | -8/Materials | Core integrity fell below 20% 1289 | -8/Materials | Lost 6 parts (1n3u2w) 1343 | -8/Materials | Destroyed by G-47 Trooper with Particle Gun Last Messages --------------- 01238_ Assault Rifle destroyed. 01238_ Propulsion Shielding destroyed. 01241_ Lgt. Armor Plating destroyed. 01250_ Imp. Carbon-fiber Leg destroyed. 01250_ Imp. Heat Sink destroyed. 01256_ K-01 Serf destroyed. 01258_ Chainsword destroyed. 01298_ W-25 Informer sends out distress signal. 01307_ Slammed into R-06 Scavenger. 01310_ Slammed into K-01 Serf. 01321_ Triggered Alarm Trap. 01321_ An alarm sounds. 01321_ ALERT: Alarm triggered, dispatching investigation squad. 01331_ W-25 Informer sends out distress signal. [Achievement: Hunted] 01334_ S-10 Pest destroyed. 01334_ G-47 Trooper destroyed. 01337_ W-25 Informer destroyed. 01339_ The unstable cave ceiling collapses. [Achievement: First Step to Greatness] Map ----- +----------------------------------------------------+ | ???????####????????????????????# #########???????? | | ??????? #????????????????????# ## #???????? | | ??????? ###################??# ## #???????? | | ??????? #??# ## """ #???????? | | ???????#+############### #?## ## """ #???????? | | ??????? #?????????# ### ! # """ #???????? | | ??????? #?????????# Y + #???????? | | ??????? #?????????# ### ########?#+##### | | ??????? ########### #?## ##????????# # | | ??????? + #??# #?????????#g ! # | | ??????? ##############+#### #?????????# # | | ??????? #??????????# # #?????????#"" ! # | | ??????? #?????????## # #?????????#"T # | | ???????################## " + ###########"" # | | ??????????????# ! T # T # # ## # | | ??????????????# ] # " # # """"" ####+### | | ############### # # # """""!# | | / ######## # """""%+[ | | #################/######??????# #! !# | | #????? #??????## ##??????????# # """"" ####+### | | +????? #??????# ?????????# # """"" ## | | # #??????# ! ########## #] """"" ## ! | | # #??????# =g= # ## """ | | # #??????# ##### ######## ## """ ! | | # #??????# [ #???# #??????#### """ | | ########??###### @ #???# #?????????# ] | | #?????????#"""#?# = #g#???# #?????????####### | | #?????????#"R"#?# #####g#???# #?????????####### | | ###########" "### #####/##### ###???????# | | "T" ##! [# #??????## [[[ | | ??????????# # #??????# [[[ | | ???????????# * "" + T #???????# [[ | | """ ""????????????# Y" # #???????? | | """ ""????????????# "" # #?????????? | | ] """ ""????????????#! ## ##?###########+# | | """ """ ??" ############ #??# | | #??# | | g a ? #??# | | r##############?#### #??# #######+# | | # ! [#????##+######### ##??# #???????? | | #t ?????????????????# #???# #???????? | | / """ "???????????????????# #???# #???????? | | # """ "???????????????????#%#???# #???????? | | # """ ????????????????????# #???# #???????? | | # = ????????????????????# #???# #???????? | | ##########???????????????????#%#???# #???????? | | #??###########??????????????## ##### #???????? | | ####= #??????????????# #???????? | | t%/=! #??????????????# #???????? | | +#####* #??????????##### #???????? | +----------------------------------------------------+ Best States ------------- Heat Dissipation 45 Energy Generation 14 Energy Capacity 265 Matter Stores 300 Matter Capacity 300 Sight Range 16 Terrain Scan Density 10 Armor Coverage 150 Propulsion Shielding 33 Evasion (%) 50 Recoil Reduction 1 Item Schematics ----------------- None Robot Schematics ------------------ None Fabricated ------------ Nothing Alien Tech Used ----------------- None Achievements -------------- Crack Shot First Step to Greatness Hunted Novice Programmer One Hack Too Far Storm Trooper True Hacker Uninvited Guest Challenges ------------ None Game ------ Seed CoilDerelictLeg Manual? 0 Play Time 00:25:24 Cumulative 4.7 hours Start 2020.08.25 @ 15:56:57 End 2020.08.26 @ 20:43:59 Sessions 3 Manual Loads 0 Difficulty Rogue Special Mode None Game No. 2 Rogue 2 Adventurer 0 Explorer 0 Win Type - Total 0 Types 0/0/0/0/0/0/0 Lore% 3 Gallery% 12 Achievement% 3 Wizard Run 0 Options --------- ASCII 0 Keyboard 0 Movement Mouse Keybinds 0 Fullscreen 2 Font 18/SmallcapsGlow Map View 76x50 Tactical HUD 1 Map Filters NONE Filters NONE Steam 0 RUN: 7f1c3a73-e7d1-4468-9232-d3eb31ea8cea